Cogmind - Beta 16 @@@ ROGUE MODE // 2026.01.02 @ 11:57:19 Player: JustDragon Result: Destroyed by Y-45 Defender with Heavy Assault Rifle Performance ------------- Evolutions (1) 500 Regions Visited (3) 600 Robots Destroyed (30) 150 Value Destroyed (831) 831 Prototype IDs (5) 100 Alien Tech Used (0) 0 Bonus (0) 0 TOTAL SCORE: 2181 Bonus ------- None Cogmind --------- Core Integrity 0/400 Matter 300/300 Energy 99/100 System Corruption 0% Temperature Cool (18) Movement Core (700) Ox13 Location -9/Storage Parts ------- > --- POWER (1) -------- (None) > --- PROPULSION (2) --- (None) > --- UTILITY (4) ------ High-capacity Storage Unit Targeting Computer > --- WEAPON (2) ------- (None) > --- INVENTORY (20) --- Light Treads Medium Armor Plating Drone Bay (2/2) Improved Medium Laser Peak State ------------ > --- POWER ------------ Improved Ion Engine > --- PROPULSION ------- Light Treads Light Treads > --- UTILITY ---------- High-capacity Storage Unit Sensor Array Targeting Computer Medium Armor Plating > --- WEAPON ----------- Improved Medium Laser Heavy Assault Rifle > --- INVENTORY -------- Light Treads Medium Armor Plating Drone Bay Improved Medium Laser Grenade Launcher [Rating: 15] Favorites ----------- Power Ion Engine Engine Ion Engine Propulsion Light Treads Treads Light Treads Utility Targeting Computer Device Sensor Array Storage Small Storage Unit Processor Targeting Computer Protection Medium Armor Plating Weapon Assault Rifle Energy Gun Improved Medium Laser Ballistic Gun Assault Rifle Launcher Grenade Launcher Build | -11 -10 -9 -9 ------- Run | Yrd Mat Mat Sto Slots Evolved 2 | . . 2 . Power . | . . . . Propulsion . | . . . . Utility 2 | . . 2 . Weapon . | . . . . Parts Attached 21 | 6 1 3 11 Power 2 | 1 . . 1 Engine 2 | 1 . . 1 Core . | . . . . Reactor . | . . . . Propulsion 5 | 2 . . 3 Treads 5 | 2 . . 3 Leg . | . . . . Wheel . | . . . . Hover . | . . . . Flight . | . . . . Utility 8 | 1 . 3 4 Device 2 | . . 2 . Storage 3 | 1 . . 2 Processor 1 | . . 1 . Hackware . | . . . . Protection 2 | . . . 2 Artifact . | . . . . Weapon 6 | 2 1 . 3 Energy Gun 1 | . . . 1 Energy Cannon . | . . . . Ballistic Gun 4 | 2 . . 2 Ballistic Cannon . | . . . . Launcher 1 | . 1 . . Special Weapon . | . . . . Impact Weapon . | . . . . Slashing Weapon . | . . . . Piercing Weapon . | . . . . Special Melee Weapon . | . . . . Unidentified Prototypes 1 | . . . 1 Parts Lost 11 | . . . 11 Power 1 | . . . 1 Propulsion 3 | . . . 3 Utility 3 | . . . 3 Weapon 4 | . . . 4 Highest Loss Streak 4 | . . . 4 To Critical Strikes . | . . . . Average Backups 3 | . 1 1 4 Power . | . . . . Propulsion . | . . . 1 Utility 1 | . . . 1 Weapon 1 | . . 1 1 Tool/Special . | . . . . Unused Backups 5 | . . . 5 Power 1 | . . . 1 Propulsion . | . . . . Utility 3 | . . . 3 Weapon 1 | . . . 1 Tool/Special . | . . . . Average Slot Usage (%) 78 | . 85 80 77 Engine 9 | . 14 11 8 Treads 16 | . 28 22 13 Device 6 | . . 3 8 Storage 11 | . 14 11 11 Processor 9 | . . 11 11 Protection 4 | . . . 5 Energy Gun 3 | . . . 5 Ballistic Gun 12 | . 19 11 11 Launcher 3 | . 8 11 2 Peak Build Rating 15 | 6 6 9 15 Average Rating 9 | 4 6 7 10 On Entrance 5 | . 6 6 9 Avg Prop Armor Cover (%) . | . . . . Naked Turns . | . . . . Heaviest Build 61 | 14 15 17 61 Greatest Support 40 | 40 40 40 40 Greatest Overweight (x) 14 | 4 . . 14 Average Overweight (x) . | . . . 1 Largest Inventory Capacity 20 | 8 8 8 20 Average Capacity 13 | 7 8 8 15 Most Carried 8 | 5 2 4 8 Average Carried 3 | . 1 1 4 Final Capacity 20 | 8 8 8 20 Final Carried 4 | . 2 2 4 Class Distribution -------------------- 89% | Mutant 10% | Scavenger-Mutant Dominant Class ---------------- Mutant | -10/Materials Mutant | -9/Materials Mutant | -9/Storage Resources | -11 -10 -9 -9 ----------- Run | Yrd Mat Mat Sto Matter Collected 770 | 171 199 . 400 Remotely . | . . . . Salvage Created 1046 | . 229 . 817 Parts 59 | . 13 . 46 Haulers Intercepted 1 | . . . 1 Recyclers Shooed 1 | . . . 1 Parts Field Recycled . | . . . . Retrieved Matter . | . . . . Parts Self-Destructed . | . . . . Prevented . | . . . . Parts Restored . | . . . . Kills | -11 -10 -9 -9 ------- Run | Yrd Mat Mat Sto Combat Hostiles Destroyed 25 | . 6 . 19 Guns 20 | . 2 . 18 AOE 5 | . 4 . 1 Classes Destroyed 7 | . 4 . 3 Worker 3 | . 1 . 2 Hauler 1 | . . . 1 Recycler 1 | . 1 . . Swarmer 6 | . 2 . 4 Grunt 12 | . 4 . 8 Brawler 1 | . . . 1 Sentry 6 | . . . 6 Best Kill Streak 6 | . 6 . 4 Combat Bots Only 4 | . 4 . 4 Max Kills in Single Turn 3 | . 3 . 2 Gunslinging 1 | . . . 1 Exploded 1 | . 1 . 1 Melee . | . . . . Uniques/NPCs Destroyed . | . . . . Combat | -11 -10 -9 -9 -------- Run | Yrd Mat Mat Sto Hostile Shots Fired 195 | . 34 . 161 Missed 41 | . 8 . 33 Hits 154 | . 26 . 128 Melee 1 | . . . 1 Projectile 153 | . 26 . 127 Critical Strikes 4 | . . . 4 Damage Taken 1982 | . 334 . 1648 Core 458 | . 52 . 406 Absorbed by Shields . | . . . . Regen/Repaired (Parts) 87 | . . . 87 Core Remaining (%) 89 | 100 79 . . Volleys Fired 70 | . 9 . 61 Largest 2 | . 2 . 2 Hottest 86 | . 50 . 86 Shots Fired 116 | . 18 . 98 Gun 106 | . 10 . 96 Cannon . | . . . . Launcher 10 | . 8 . 2 Special . | . . . . Kinetic 81 | . 10 . 71 Thermal 25 | . . . 25 Explosive 10 | . 8 . 2 Electromagnetic . | . . . . Robot Hit Streak 18 | . 1 . 18 Robot Miss Streak 4 | . 3 . 4 Penetration Max . | . . . . Secondary Targets 4 | . . . 4 Max Gunslinging Chain 1 | . . . 1 Shots Hit Robots 81 | . 3 . 78 Core Hits 44 | . 10 . 34 Critical Kills 1 | . 1 . . Critical Parts Destroyed . | . . . . Critical Strikes 2 | . 1 . 1 Burn 1 | . . . 1 Destroy 1 | . 1 . . Melee Attacks . | . . . . Impact . | . . . . Slashing . | . . . . Piercing . | . . . . Sneak Attacks . | . . . . Combat Hostiles . | . . . . Follow-up Attacks . | . . . . Damage Inflicted 1678 | . 369 . 1309 Guns 1297 | . 36 . 1261 Cannons . | . . . . Explosions 381 | . 333 . 48 Melee . | . . . . Ramming . | . . . . Kinetic 962 | . 36 . 926 Thermal 335 | . . . 335 Explosive 381 | . 333 . 48 Electromagnetic . | . . . . Impact . | . . . . Slashing . | . . . . Piercing . | . . . . Highest Corruption 1 | . 1 . . Average Corruption 1 | . 1 . . Corruption Purged . | . . . . Corruption Blocked . | . . . . Overload Shots . | . . . . Overflow Damage . | . . . . Projectiles . | . . . . Explosions . | . . . . Melee . | . . . . Knockbacks . | . . . . Impact . | . . . . Kinetic . | . . . . Secondary . | . . . . Self-Inflicted Damage 74 | . 37 . 37 Shots 5 | . 3 . 2 Rammed 1 | . . . 1 Targets Rammed 1 | . . . 1 Kicked . | . . . . Crushed . | . . . . Highest Temperature 182 | . 11 . 182 Average Temperature 38 | . 4 . 45 Received Heat Transfer 819 | . 126 . 693 Siege Activations . | . . . . Martial Activations . | . . . . Shielding Activations . | . . . . Robots Disrupted . | . . . . Combat Hostiles . | . . . . Robots Corrupted . | . . . . Combat Hostiles . | . . . . Parts Fried . | . . . . Impact Corruptions . | . . . . Robots Melted . | . . . . Combat Hostiles . | . . . . Parts Melted . | . . . . Heat Transferred 814 | . . . 814 Parts Sabotaged . | . . . . Parts Stolen . | . . . . Parts Stripped . | . . . . Power Chain Reactions . | . . . . Alert | -11 -10 -9 -9 ------- Run | Yrd Mat Mat Sto Maximum Alert Level . | . . . . Low Security (%) 100 | 100 100 100 100 Level 1 . | . . . . Level 2 . | . . . . Level 3 . | . . . . Level 4 . | . . . . Level 5 . | . . . . High Security . | . . . . Max Security . | . . . . Peak Influence 194 | . 194 65 123 Initial 65 | . . 65 . Average 48 | . 90 24 46 Influence Increases 759 | . 234 5 520 Destroy 0b10 Robot/C 500 | . 120 . 380 Destroy 0b10 Robot/NC 25 | . 10 . 15 Destroy Leader 132 | . 30 . 102 Successful Hack 21 | . 10 5 6 Disable Machine 30 | . 30 . . Destroy Structure 51 | . 34 . 17 Influence Decreases 759 | . 80 159 520 Entered New Map 89 | . . 89 . Time Decay 580 | . 80 70 430 Lost Part 90 | . . . 90 Squads Dispatched 4 | . . 1 3 Investigation 2 | . . . 2 Extermination . | . . . . Reinforcement 2 | . . 1 1 Assault . | . . . . Garrison . | . . . . Intercept . | . . . . Searches Triggered . | . . . . Construction Impeded . | . . . . Haulers Reinforced . | . . . . Active Scanning Responses . | . . . . Cargo Convoy Interrupts . | . . . . Stealth | -11 -10 -9 -9 --------- Run | Yrd Mat Mat Sto Distress Signals 2 | . 1 1 . Communications Jammed . | . . . . Distress Signals . | . . . . Times Spotted 34 | . 9 . 25 Peak Tracking Total 5 | . 5 . 4 Tactical Retreats . | . . . . Traps | -11 -10 -9 -9 ------- Run | Yrd Mat Mat Sto Traps Triggered . | . . . . Indirectly . | . . . . Trap Hack Attempts . | . . . . Triggered . | . . . . Disarmed . | . . . . Reprogrammed . | . . . . Reused . | . . . . Traps Extracted . | . . . . Installed . | . . . . Triggered . | . . . . Machines | -11 -10 -9 -9 ---------- Run | Yrd Mat Mat Sto Machines Disabled 2 | . 2 . . Max in Single Turn 1 | . 1 . . Machines Repaired . | . . . . Machines Dismantled . | . . . . Machines Sabotaged . | . . . . Overloaded Fab Kills . | . . . . Hacking | -11 -10 -9 -9 --------- Run | Yrd Mat Mat Sto Machines Accessed 10 | . 2 2 6 Terminals 8 | . 2 1 5 Fabricators . | . . . . Repair Stations 2 | . . 1 1 Recycling Units . | . . . . Scanalyzers . | . . . . Garrison Access . | . . . . Total Hacks 31 | . 7 6 18 Successful 14 | . 3 1 10 Failed 17 | . 4 5 8 Catastrophic 1 | . . . 1 Database Lockouts . | . . . . Manual 2 | . . . 2 Terminals 25 | . 7 4 14 Fabricators . | . . . . Repair Stations 6 | . . 2 4 Recycling Units . | . . . . Scanalyzers . | . . . . Garrison Access . | . . . . Terminal Hacks 11 | . 3 1 7 Record 2 | . . . 2 Prototype ID Bank 2 | . 1 . 1 Open Door 1 | . . . 1 Emergency Access Points 1 | . . . 1 Terminal Index 1 | . 1 . . Alert Level 1 | . . . 1 Maintenance Status 1 | . . . 1 Zone Layout 2 | . 1 1 . Fabricator Hacks . | . . . . Repair Station Hacks 3 | . . . 3 Scan Component 1 | . . . 1 Repair 1 | . . . 1 Refit 1 | . . . 1 Recycling Unit Hacks . | . . . . Scanalyzer . | . . . . Garrison Access Hacks . | . . . . Unauthorized Hacks . | . . . . Terminals . | . . . . Fabricators . | . . . . Repair Stations . | . . . . Recycling Units . | . . . . Scanalyzers . | . . . . Garrison Access . | . . . . Data Cores Recovered . | . . . . Used . | . . . . Hacking Detections 9 | . 2 2 5 Full Trace Events 3 | . 1 . 2 Feedback Events 1 | . 1 . . Corruption 1 | . 1 . . Feedback Blocked . | . . . . Robot Schematics Acquired . | . . . . Robots Built . | . . . . Authchips . | . . . . Time . | . . . . Total Robot Build Rating . | . . . . Part Schematics Acquired . | . . . . Parts Built . | . . . . Authchips . | . . . . Time . | . . . . Total Part Build Rating . | . . . . Part Studies Acquired . | . . . . Parts Repaired 1 | . . . 1 Time 26 | . . . 26 Parts Recycled . | . . . . Recycled Matter . | . . . . Retrieved Matter . | . . . . Retrieved Components . | . . . . Parts Scanalyzed . | . . . . Part Schematics Acquired . | . . . . Parts Damaged . | . . . . Bothacking | -11 -10 -9 -9 ------------ Run | Yrd Mat Mat Sto Used RIF Installer . | . . . . Robots Hacked . | . . . . Non-combat . | . . . . Combat . | . . . . Robot Hacks Applied . | . . . . Relay Couplers Released . | . . . . Fabnet Peak Effective % . | . . . . Robots Rewired . | . . . . Allies Hacked . | . . . . Hacks Repelled . | . . . . Allies | -11 -10 -9 -9 -------- Run | Yrd Mat Mat Sto Total Allies . | . . . . Largest Group . | . . . . Highest-Rated Group . | . . . . Highest-Rated Ally . | . . . . Total Orders . | . . . . Ally Attacks . | . . . . Total Damage . | . . . . Kills . | . . . . Allies Corrupted . | . . . . Allies Melted . | . . . . Intel | -11 -10 -9 -9 ------- Run | Yrd Mat Mat Sto Active Infowar (turns) 985 | . . 34 951 Sensors 985 | . . 34 951 Seismic 204 | . . 34 170 Robot Analysis Total . | . . . . Derelict Logs Recovered . | . . . . Drone Launches . | . . . . Drone Recoveries . | . . . . Exploration | -11 -10 -9 -9 ------------- Run | Yrd Mat Mat Sto Turns Passed 1985 | 68 273 206 1438 Spaces Moved 841 | 51 152 125 513 Core 61 | 27 . . 34 Treads 780 | 24 152 125 479 Legs . | . . . . Wheels . | . . . . Hover . | . . . . Flight . | . . . . Fastest Speed 50 | 50 160 160 160 Average Speed 206 | 113 160 160 241 Slowest Speed 750 | 250 160 160 750 Overloaded Moves . | . . . . Propulsion Burnouts . | . . . . Robots Hopped . | . . . . Potential Cave-ins . | . . . . Cave-ins Triggered . | . . . . Exploration Rate (%) 24 | 4 26 9 57 Regions Visited 3 Branch Regions 1 Pre-discovered Areas . | . . . . Known Exits Taken . | . . . . Unknown Exits Taken 3 | 1 1 1 . Scrap Searched . | . . . . Spaces Dug . | . . . . Terrain Destroyed 73 | . 59 . 14 Melee . | . . . . Projectile . | . . . . AOE 73 | . 59 . 14 Terrain Rammed . | . . . . Walls Destroyed . | . . . . Machines Disabled . | . . . . Actions | -11 -10 -9 -9 --------- Run | Yrd Mat Mat Sto Total 977 | 61 163 131 622 Wait 3 | . . 1 2 Move 838 | 50 151 124 513 Hop . | . . . . Pick Up 25 | 5 2 3 15 Fast Attach 1 | 1 . . . Attach 13 | 5 . 3 5 Detach 1 | . . . 1 Swap 9 | . 1 . 8 Drop 9 | . . . 9 Fire 70 | . 9 . 61 Melee . | . . . . Ram . | . . . . Kick . | . . . . Crush 1 | . . . 1 Escape Stasis . | . . . . Rewire 7 | . . . 7 Trap . | . . . . Miscellaneous . | . . . . Route ------- -11/Scrapyard -10/Materials -9/Materials -9/Storage History --------- Turn | Location | Event 6 | -11/Scrapyard | Discovered new exit (range 13) 69 | -11/Scrapyard | Entered Materials 274 | -10/Materials | Discovered new exit (range 16) 312 | -10/Materials | Build established: Mutant 342 | -10/Materials | Entered another Materials area 342 | -9/Materials | Evolved 2 slots: Utility x2 343 | -9/Materials | Discovered new exit (range 6) 548 | -9/Materials | Entered Storage 634 | -9/Storage | Repaired Lgt. Treads? 1722 | -9/Storage | Core integrity fell below 50% 1748 | -9/Storage | Lost 4 parts (1p2n1w) 1976 | -9/Storage | Core integrity fell below 20% 1986 | -9/Storage | Destroyed by Y-45 Defender with Heavy Assault Rifle Last Messages --------------- K-01 Serf collects debris. Grenade Launcher destroyed. Imp. Ion Engine destroyed. G-34 Mercenary suffers critical hit (Burn). G-34 Mercenary destroyed. K-01 Serf collects debris. Lgt. Treads destroyed. R-06 Scavenger collects Aluminum Leg. K-01 Serf collects debris. R-06 Scavenger collects Sml. Laser. G-34 Mercenary heat damages Aluminum Leg. G-34 Mercenary heat short circuits Ion Engine. G-34 Mercenary destroyed. K-01 Serf collects debris. K-01 Serf cleans the Terminal. Connecting with Terminal... K-01 Serf cleans the Terminal. Imp. Medium Laser destroyed. ALERT: Hostiles spotted, dispatching reinforcements to Terminal S009. Map ----- +----------------------------------------------------+ | ?????????????????????????????????????# #??# ##+ | | ?????????????????????????????????????# #??# # % | | ?????????????????????????????????????# #??# #! | | ?????????????????????????????????????# #??# #![ | | ?????????????????????????????????????# #### # | | ?????????????????????????????????????# + + | | ?????????????????????????????????????# # ###### | | ?????????????????????????????????????# # #???? | | ???????????????????????????????############ #???? | | ???????????????????????????##### ## #???? | | ??????????????????????????? # ## ##### | | ????????????????????????#?? # ##% + | | ????????????????????????# ? # % % ## # | | ????????????????????????# ###+##+##### ## | | ?????????????????????"??? ???# #???# | | ?????????????????????""??? ???# #???# | | ??????????????????? """ ####+##### ##### | | ???????????????????? + | | ????????????????????????# % ### | | ???????????????????# #### #?? | | ???????????????????# k #?? | | ???????????????????# #### #?? | | ????????????????????????# #?? | | ????????????????????????# ^##" "########## #?? | | ?????????????????????####/##+##"T"#????????# #?? | | ?????????????????????# Y @ #"""#????????# #?? | | ?????????????????????# """ [ #####????????# #?? | | ?????????????????????# """ #????????????# #?? | | ?????????????????????# """ Y #????????????# #?? | | ???????????????????? + #????????????# #?? | | ???????????????????+## """ #???????????? ?? | | ?????????????????????# """ #????????????? ?? | | ?????????????????????# ??? ?????????????? ???? | | ?????????????????????# ??? ##?????????????????? | | ??????????????????????????T"###??????????????????? | | ???????????????????????????"#????????????????????? | | ?????????????????????????????????????????????????? | | ?????????????????????????????????????????????????? | | ?????????????????????????????????????????????????? | | ?????????????????????????????????????????????????? | | ?????????????????????????????????????????????????? | | ?????????????????????????????????????????????????? | | | | | | | | | | | | | | | | | +----------------------------------------------------+ Best States ------------- Heat Dissipation 28 Energy Generation 12 Energy Capacity 265 Matter Stores 300 Matter Capacity 300 Sight Range 16 Robot Scan Range 14 Terrain Scan Density 10 Armor Coverage 225 Evasion (%) 50 Targeting Accuracy 5 Recoil Reduction 2 Item Schematics ----------------- None Robot Schematics ------------------ None Fabricated ------------ Nothing Repaired ---------- Lgt. Treads | 37% | -9/Storage Studied --------- None Alien Tech Used ----------------- None Achievements -------------- Fitting Room Loot Pinata Challenges ------------ None Game ------ Seed IntegratedFortressStorm Manual? 0 Play Time 00:18:54 Cumulative 2.7 hours Start 2026.01.02 @ 11:41:17 End 2026.01.02 @ 11:57:19 Sessions 1 Manual Loads 0 Difficulty Rogue Special Mode None Game No. 10 Rogue 10 Adventurer 0 Explorer 0 Win Type - Total 0 Types 0/0/0/0/0/0/0/0/0/0 Lore% 3 Gallery% 6 Achievement% 5 Wizard Run 0 Options --------- Layout 1 ASCII 0 Keyboard 1 Movement Arrows Keybinds 0 Fullscreen 2 Font 32/SmallcapsGlow Map View 50x40 Zoom Use 0% Tactical HUD 0 Map Filters NONE Filters NONE Steam 1 RUN: 143f6bb3-b578-4a9c-a01d-587f29c9b8b8